bitfinex/quotes_SOLUSD_20250617
["timestamp","ask_amount","ask_price","bid_price","bid_amount"]
[1750183561425,0.14216157,146.69,146.65,6.81879046]
[1750183561597,6.99105234,146.69,146.65,6.81879046]
[1750183561795,6.84889077,146.68,146.64,20.06810333]
[1750183562004,6.84889077,146.68,146.64,13.66810333]
[1750183562401,6.99105234,146.69,146.65,6.84889077]
[1750183562618,26.0,146.7,146.65,6.81891137]
[1750183562815,5.06929245,146.74,146.69,6.84889077]
[1750183563018,14.38491486,146.79,146.68,18.64964886]
[1750183563238,6.84889077,146.76,146.68,18.64964886]
[1750183563433,6.84889077,146.74,146.69,6.84889077]
[1750183563732,0.42648471,146.74,146.66,33.06824886]
[1750183563908,7.27537548,146.74,146.7,6.84889077]
[1750183564110,0.14216157,146.74,146.7,6.84889077]
[1750183564306,6.99105234,146.74,146.7,6.84889077]
[1750183564504,6.84889077,146.74,146.7,6.84889077]
[1750183564717,6.84889077,146.74,146.71,6.81616795]
[1750183565110,6.84889077,146.74,146.7,13.66534111]
[1750183565337,0.14216157,146.74,146.71,6.84889077]
[1750183565538,0.14216157,146.74,146.72,6.84889077]
[1750183565835,0.14216157,146.74,146.71,6.84889077]
[1750183566037,26.0,146.75,146.7,6.81645034]
[1750183566334,26.0,146.75,146.72,6.84889077]
[1750183566637,9.31562241,146.79,146.74,13.66336515]
[1750183566638,16.12825807,146.79,146.74,13.66336515]
[1750183566841,9.31562241,146.79,146.76,6.84889077]
[1750183567140,9.31562241,146.79,146.74,6.81447438]
[1750183567141,9.31562241,146.79,146.77,6.84889077]
[1750183567435,6.84889077,146.84,146.78,6.84889077]
[1750183567608,26.0,146.84,146.8,6.84889077]
[1750183567951,0.14216157,146.83,146.8,6.84889077]
[1750183568443,6.84889077,146.86,146.82,6.84889077]
[1750183568606,6.84889077,146.86,146.82,13.65975459]
[1750183569457,26.0,146.86,146.82,13.65975459]
[1750183569637,26.0,146.86,146.83,6.84889077]
[1750183569941,26.0,146.85,146.83,6.84889077]
[1750183570139,36.85877681,146.89,146.83,6.84889077]
[1750183570332,6.84889077,146.88,146.84,6.84889077]
[1750183570847,37.69256688,146.87,146.84,6.81013347]
[1750183571207,9.19048799,146.91,146.86,11.69256688]
[1750183571426,9.19048799,146.91,146.84,18.50270035]
[1750183571427,11.69256688,146.88,146.84,18.50270035]
[1750183571841,26.0,146.88,146.84,18.50270035]
[1750183572031,37.69256688,146.88,146.84,18.50270035]
[1750183572338,11.69256688,146.87,146.83,11.69256688]
[1750183572511,37.69256688,146.88,146.84,11.69256688]
[1750183572913,37.69256688,146.88,146.84,18.50224633]
[1750183573114,26.0,146.88,146.84,18.50224633]
[1750183573334,11.69256688,146.86,146.82,6.81106116]
[1750183573538,11.69256688,146.84,146.81,6.81136159]
[1750183573744,11.69256688,146.85,146.81,18.50392847]
[1750183573959,37.69256688,146.86,146.82,11.69256688]
[1750183574121,11.69256688,146.86,146.82,11.69256688]
[1750183574733,0.28432314,146.87,146.83,11.69256688]
[1750183574734,11.83472845,146.87,146.83,11.69256688]
[1750183574934,11.83472845,146.87,146.84,6.81013347]
[1750183575244,26.0,146.89,146.84,6.81013347]
[1750183575544,11.69256688,146.88,146.84,18.50270035]
[1750183575746,26.0,146.89,146.84,18.50270035]
[1750183575931,11.69256688,146.88,146.84,18.50270035]
[1750183576132,37.69256688,146.89,146.85,11.69256688]
[1750183576941,11.69256688,146.88,146.84,18.50270035]
[1750183577144,26.0,146.89,146.84,18.50270035]
[1750183577353,11.69256688,146.88,146.84,18.50270035]
[1750183577849,11.69256688,146.87,146.83,18.50301725]
[1750183578216,11.83472845,146.88,146.83,33.50301725]
[1750183578652,11.69256688,146.87,146.83,33.50301725]
[1750183578828,11.69256688,146.86,146.83,21.81045037]
[1750183579148,11.69256688,146.87,146.83,21.81045037]
[1750183579452,11.69256688,146.88,146.84,11.69256688]
[1750183580220,11.69256688,146.87,146.83,33.50301725]
[1750183580440,0.14216157,146.88,146.83,33.50301725]
[1750183580639,32.80795818,146.89,146.83,33.50301725]
[1750183580640,11.69256688,146.87,146.83,33.50301725]
[1750183580941,0.14216157,146.88,146.84,11.69256688]
[1750183581324,11.83472845,146.88,146.84,11.69256688]
[1750183581844,11.69256688,146.87,146.83,33.50301725]
[1750183582222,11.69256688,146.85,146.83,15.0]
[1750183582441,11.69256688,146.84,146.83,15.0]
[1750183583138,11.83472845,146.84,146.83,15.0]
[1750183584120,26.14216157,146.84,146.83,15.0]
[1750183584318,37.83472845,146.84,146.83,15.0]
[1750183586724,44.92918506,146.84,146.83,15.0]
[1750183587126,0.42648471,146.83,146.73,7.8424]
[1750183587430,11.69256688,146.75,146.68,8.1477]
[1750183587626,11.69256688,146.75,146.71,11.69256688]
[1750183587824,39.30976688,146.79,146.71,11.69256688]
[1750183587825,11.69256688,146.76,146.71,11.69256688]
[1750183588347,11.69256688,146.76,146.72,11.69256688]
[1750183588832,11.69256688,146.76,146.71,11.69256688]
[1750183589160,11.69256688,146.75,146.72,6.81557176]
[1750183589520,7.23956237,146.78,146.72,6.81557176]
[1750183589724,11.69256688,146.76,146.72,6.81557176]
[1750183590048,11.69256688,146.74,146.72,6.81557176]
[1750183590244,11.69256688,146.73,146.69,18.64964886]
[1750183590432,11.69256688,146.73,146.69,25.46674613]
[1750183590638,11.69256688,146.73,146.69,37.15931301]
[1750183590844,33.24007713,146.77,146.69,6.81709727]
[1750183591039,11.69256688,146.71,146.69,6.81709727]
[1750183591249,26.0,146.74,146.69,6.81709727]
[1750183591436,11.69256688,146.74,146.7,11.69256688]
[1750183591646,11.69256688,146.73,146.69,18.50966415]
[1750183592265,11.69256688,146.72,146.69,6.81709727]
[1750183593071,11.69256688,146.73,146.69,18.50966415]
[1750183593426,0.42648471,146.74,146.7,11.69256688]
[1750183593632,12.11905159,146.74,146.7,11.69256688]
[1750183594040,11.69256688,146.73,146.69,18.50966415]
[1750183595253,11.83472845,146.74,146.69,18.50966415]
[1750183595758,26.0,146.75,146.69,18.50966415]
[1750183595759,37.69256688,146.75,146.71,11.69256688]
[1750183596057,147.9,146.78,146.73,11.69256688]
[1750183596358,0.14216157,146.77,146.74,18.507156]
[1750183596541,159.59256688,146.78,146.74,6.81458912]
[1750183597062,147.9,146.78,146.75,11.69256688]
[1750183597248,11.69256688,146.81,146.77,11.69256688]
[1750183597448,147.9,146.83,146.77,11.69256688]
[1750183597744,0.14216157,146.81,146.75,18.64964886]
[1750183597948,11.83472845,146.81,146.77,11.69256688]
[1750183598262,180.71064985,146.83,146.75,18.64964886]
[1750183598557,147.9,146.83,146.79,11.69256688]
[1750183598859,147.9,146.83,146.8,11.69256688]
[1750183599744,147.9,146.83,146.77,23.84649983]
[1750183599745,159.59256688,146.83,146.77,23.84649983]
[1750183599944,159.59256688,146.83,146.79,11.69256688]
[1750183600153,147.9,146.83,146.79,11.69256688]
[1750183600464,159.59256688,146.83,146.79,18.50469166]
[1750183600769,26.0,146.84,146.8,11.69256688]
[1750183600957,16.73582663,146.88,146.83,11.69256688]
[1750183601159,11.83472845,146.87,146.83,11.69256688]
[1750183601355,0.14216157,146.87,146.84,11.69256688]
[1750183601564,16.73582663,146.88,146.84,11.69256688]
[1750183601759,11.69256688,146.87,146.8,18.64964886]
[1750183601957,159.59256688,146.89,146.85,11.69256688]
[1750183602161,159.59256688,146.89,146.84,11.69256688]
[1750183602346,159.59256688,146.89,146.85,6.80966973]
[1750183602550,11.69256688,146.88,146.85,6.80966973]
[1750183605175,11.69256688,146.86,146.82,6.81106116]
[1750183605387,11.69256688,146.86,146.82,18.50362804]
[1750183605553,24.11331067,146.88,146.79,8.215]
[1750183605756,24.11331067,146.88,146.79,25.07885209]
[1750183605757,0.14216157,146.83,146.79,25.07885209]
[1750183605956,37.69256688,146.85,146.81,11.69256688]
[1750183606650,11.69256688,146.84,146.8,11.69256688]
[1750183607472,11.69256688,146.84,146.79,13.38628521]
[1750183607653,11.69256688,146.83,146.79,25.07885209]
[1750183608372,11.69256688,146.82,146.79,13.38628521]
[1750183608587,11.69256688,146.81,146.78,13.19274277]
[1750183610069,0.42648471,146.84,146.78,13.19274277]
[1750183610258,11.69256688,146.81,146.78,13.19274277]
[1750183612372,12.29908135,146.84,146.78,13.19274277]
[1750183612569,11.69256688,146.81,146.78,13.19274277]
[1750183613981,0.14216157,146.8,146.73,17.03701059]
[1750183614285,11.69256688,146.77,146.73,28.72957747]
[1750183614456,11.69256688,146.77,146.73,18.50780575]
[1750183615369,11.69256688,146.75,146.71,31.68524886]
[1750183615568,11.69256688,146.74,146.7,6.81663258]
[1750183615882,11.69256688,146.74,146.7,18.50919946]
[1750183616067,11.69256688,146.73,146.7,6.81663258]
[1750183616985,11.69256688,146.73,146.69,6.81709727]
[1750183617651,11.69256688,146.73,146.69,18.50966415]
[1750183618283,11.69256688,146.74,146.69,18.50966415]
[1750183618574,11.69256688,146.73,146.69,18.50966415]
[1750183619248,11.69256688,146.73,146.68,6.81747324]
[1750183619249,11.69256688,146.71,146.68,6.81747324]
[1750183619454,11.69256688,146.7,146.67,6.81789181]
[1750183619880,0.42648471,146.73,146.68,11.69256688]
[1750183620074,11.69256688,146.7,146.67,6.81789181]
[1750183620461,0.42648471,146.73,146.67,6.81789181]
[1750183620661,11.69256688,146.7,146.67,6.81789181]
[1750183621870,11.69256688,146.69,146.66,6.81832513]
[1750183622068,11.69256688,146.69,146.65,11.69256688]
[1750183622267,26.42648471,146.73,146.65,11.69256688]
[1750183622268,26.42648471,146.71,146.65,6.81884199]
[1750183622455,147.9,146.74,146.7,11.69256688]
[1750183622660,159.59256688,146.74,146.7,11.69256688]
[1750183622885,11.69256688,146.73,146.7,6.81655852]
[1750183623793,11.69256688,146.73,146.65,6.81895669]
[1750183623794,37.83472845,146.71,146.65,6.81895669]
[1750183623977,26.14216157,146.71,146.65,6.81895669]
[1750183624289,11.69256688,146.68,146.65,6.81895669]
[1750183624586,11.69256688,146.69,146.65,35.55891531]
[1750183625093,26.14216157,146.71,146.66,11.69256688]
[1750183625279,37.83472845,146.71,146.66,11.69256688]
[1750183625597,11.69256688,146.7,146.66,11.69256688]
[1750183626099,147.9,146.72,146.68,11.69256688]
[1750183626270,147.9,146.72,146.7,11.69256688]
[1750183626685,11.69256688,146.75,146.71,11.69256688]
[1750183626863,6.97467754,146.75,146.71,6.83251597]
[1750183627071,6.97467754,146.75,146.72,6.81570338]
[1750183627477,6.83251597,146.75,146.72,6.81570338]
[1750183627867,6.83251597,146.74,146.72,6.81570338]
[1750183628267,7.25900068,146.76,146.72,13.64821935]
[1750183628463,1.6188,146.8,146.74,6.83251597]
[1750183628767,6.83251597,146.76,146.72,13.64821935]
[1750183628966,11.71025901,146.76,146.72,6.81570338]
[1750183629179,11.71025901,146.75,146.7,18.52689159]
[1750183629365,11.71025901,146.74,146.7,18.52689159]
[1750183629576,11.71025901,146.74,146.7,6.81663258]
[1750183631275,11.71025901,146.74,146.7,18.52689159]
[1750183631590,0.14216157,146.74,146.7,18.52689159]
[1750183631790,11.71025901,146.75,146.7,18.52689159]
[1750183632041,11.71025901,146.72,146.7,6.81663258]
[1750183632462,11.71025901,146.71,146.68,6.81756203]
[1750183633998,11.71025901,146.7,146.68,6.81756203]
[1750183634606,11.71025901,146.7,146.66,6.81849174]
[1750183634807,11.71025901,146.69,146.65,37.17886456]
[1750183636586,11.71025901,146.69,146.65,6.81895669]
[1750183636909,0.42648471,146.7,146.65,6.81895669]
[1750183637109,11.71025901,146.68,146.65,6.81895669]
[1750183637703,11.71025901,146.69,146.65,18.5292157]
[1750183638010,11.71025901,146.68,146.65,6.81895669]
[1750183638213,0.42648471,146.7,146.65,6.81895669]
[1750183638510,11.71025901,146.68,146.65,6.81895669]
[1750183639414,37.71025901,146.69,146.65,6.81895669]
[1750183639712,11.71025901,146.68,146.65,6.81895669]
[1750183640818,11.71025901,146.67,146.64,6.81926394]
[1750183641326,0.14216157,146.68,146.64,6.81926394]
[1750183641534,11.71025901,146.65,146.62,6.82035193]
[1750183641901,147.9,146.67,146.62,6.82035193]
[1750183641902,11.71025901,146.64,146.62,6.82035193]
[1750183642114,11.71025901,146.64,146.61,6.82064379]
[1750183642625,147.9,146.67,146.61,54.23259449]
[1750183642818,147.9,146.67,146.62,18.64964886]
[1750183643019,147.9,146.67,146.65,11.71025901]
[1750183643553,147.9,146.67,146.64,11.71025901]
[1750183643917,147.9,146.67,146.65,11.71025901]
[1750183644724,147.9,146.67,146.63,6.81988678]
[1750183644930,147.9,146.67,146.64,11.71025901]
[1750183645318,147.9,146.67,146.63,18.53014579]
[1750183645760,159.61025901,146.67,146.63,6.81988678]
[1750183646627,11.71025901,146.66,146.63,6.81988678]
[1750183646828,11.71025901,146.66,146.62,18.53061094]
[1750183647146,159.61025901,146.67,146.63,11.71025901]
[1750183647528,159.61025901,146.67,146.62,18.53061094]
[1750183648414,11.71025901,146.65,146.62,6.82035193]
[1750183648620,11.71025901,146.64,146.62,6.82035193]
[1750183648853,6.84262423,146.64,146.6,30.716947]
[1750183649254,180.74262423,146.67,146.63,6.84262423]
[1750183649463,147.9,146.67,146.64,6.84262423]
[1750183649666,6.0062,146.74,146.66,6.84262423]
[1750183649862,13.10589456,146.76,146.71,6.84262423]
[1750183649863,6.84262423,146.75,146.71,6.84262423]
[1750183650039,6.84262423,146.74,146.67,18.64964886]
[1750183650239,6.84262423,146.74,146.7,6.84262423]
[1750183650471,0.14216157,146.73,146.7,6.84262423]
[1750183650678,6.84262423,146.75,146.71,6.84262423]
[1750183650853,187.12888925,146.76,146.72,6.81570338]
[1750183651047,0.14216157,146.75,146.72,18.52739263]
[1750183651445,11.85385082,146.75,146.72,6.81570338]
[1750183651645,11.71168925,146.75,146.72,6.81570338]
[1750183652458,0.14216157,146.75,146.72,6.81570338]
[1750183652656,11.85385082,146.75,146.72,6.81570338]
[1750183652970,0.14216157,146.75,146.72,6.81570338]
[1750183653167,0.14216157,146.75,146.72,18.52739263]
[1750183653652,11.71168925,146.74,146.68,23.86146712]
[1750183653853,0.14216157,146.75,146.72,11.71168925]
[1750183654249,0.14216157,146.75,146.71,11.71168925]
[1750183654444,0.14216157,146.75,146.69,18.64964886]
[1750183654445,11.71168925,146.74,146.69,18.64964886]
[1750183654677,0.14216157,146.75,146.7,11.71168925]
[1750183654678,11.85385082,146.75,146.7,11.71168925]
[1750183654848,11.71168925,146.74,146.7,11.71168925]
[1750183655051,11.71168925,146.74,146.69,6.81672401]
[1750183655358,11.85385082,146.73,146.69,6.81672401]
[1750183655553,11.85385082,146.73,146.69,18.52841326]
[1750183656960,11.85385082,146.73,146.69,6.81672401]
[1750183657145,11.71168925,146.72,146.68,11.71168925]
[1750183657349,11.71168925,146.72,146.67,6.81802686]
[1750183657350,11.71168925,146.7,146.67,6.81802686]
[1750183657546,11.71168925,146.7,146.66,18.53003839]
[1750183657765,5.35485267,146.72,146.66,18.53003839]
[1750183657766,11.71168925,146.69,146.66,6.81834914]
[1750183658577,0.42648471,146.72,146.66,6.81834914]
[1750183658578,5.2126911,146.7,146.66,6.81834914]
[1750183658873,11.85385082,146.7,146.66,18.53003839]
[1750183659068,16.92438035,146.7,146.66,6.81834914]
[1750183659372,11.85385082,146.7,146.66,18.53003839]
[1750183659671,16.94149641,146.7,146.66,18.53003839]
[1750183659842,11.85385082,146.7,146.66,6.81834914]
[1750183660047,16.94149641,146.7,146.66,18.53003839]
[1750183660243,11.85385082,146.7,146.66,6.81834914]
[1750183660475,16.94149641,146.7,146.66,6.81834914]
[1750183660680,11.85385082,146.7,146.66,6.81834914]
[1750183660935,16.94149641,146.7,146.66,6.81834914]
[1750183661181,11.71168925,146.67,146.64,6.81942171]
[1750183661887,11.71168925,146.68,146.64,18.53111096]
[1750183662880,5.08764559,146.69,146.65,11.71168925]
[1750183663094,5.22980716,146.7,146.66,11.71168925]
[1750183663385,11.71168925,146.69,146.64,35.57966524]
[1750183663567,16.79933484,146.69,146.64,35.57966524]
[1750183663883,11.71168925,146.69,146.64,18.53111096]
[1750183664051,11.71168925,146.67,146.64,6.81942171]
[1750183664882,11.71168925,146.67,146.63,24.91137713]
[1750183665372,11.71168925,146.67,146.63,13.19968788]
[1750183665563,11.71168925,146.66,146.63,13.19968788]
[1750183666195,11.71168925,146.65,146.63,6.38]
[1750183666552,11.71168925,146.65,146.62,6.82016781]
[1750183666853,11.85385082,146.67,146.63,11.71168925]
[1750183670289,16.94228115,146.7,146.66,11.71168925]
[1750183670790,16.94228115,146.7,146.65,18.53064594]
[1750183671695,11.71168925,146.69,146.65,18.53064594]
[1750183672212,16.94228115,146.7,146.65,18.53064594]
[1750183672390,23.75892251,146.7,146.66,11.71168925]
[1750183672795,16.94228115,146.7,146.66,11.71168925]
[1750183673494,11.71168925,146.69,146.65,18.53064594]
[1750183673668,5.2305919,146.7,146.65,18.53064594]
[1750183673873,16.94228115,146.7,146.66,11.71168925]
[1750183674389,16.94228115,146.7,146.62,6.38]
[1750183674390,0.14216157,146.68,146.62,6.38]
[1750183674589,11.85385082,146.64,146.59,8.3842909]
[1750183674795,11.85385082,146.64,146.59,20.09598015]
[1750183674972,6.84321841,146.63,146.59,13.66480931]
[1750183676695,6.84321841,146.63,146.59,6.8215909]
[1750183676866,11.73260413,146.63,146.59,18.55419503]
[1750183677294,11.73260413,146.62,146.59,6.8215909]
[1750183678669,6.96167247,146.64,146.59,6.8215909]
[1750183678670,11.73260413,146.63,146.59,18.55419503]
[1750183679299,0.42648471,146.64,146.59,18.55419503]
[1750183679492,11.73260413,146.63,146.59,18.55419503]
[1750183680216,11.73260413,146.62,146.59,6.8215909]
[1750183680383,11.73260413,146.6,146.54,18.64964886]
[1750183680718,0.28432314,146.58,146.54,11.73260413]
[1750183680906,0.14216157,146.59,146.56,11.73260413]
[1750183681220,0.14216157,146.56,146.49,6.2384]
[1750183681374,11.73260413,146.53,146.49,6.2384]
[1750183681570,11.73260413,146.53,146.49,17.97100413]
[1750183681774,11.73260413,146.53,146.48,19.68570413]
[1750183682215,11.73260413,146.53,146.49,18.55894317]
[1750183682570,11.73260413,146.53,146.48,7.9531]
[1750183682571,11.73260413,146.52,146.48,18.11260413]
[1750183682773,0.14216157,146.49,146.4,14.1768]
[1750183682982,11.8747657,146.49,146.44,11.73260413]
[1750183683292,11.73260413,146.48,146.44,11.73260413]
[1750183683500,0.42648471,146.49,146.4,14.1768]
[1750183683705,37.73260413,146.48,146.44,11.73260413]
[1750183683916,37.73260413,146.48,146.43,11.73260413]
[1750183684317,11.73260413,146.47,146.43,11.73260413]
[1750183684520,11.73260413,146.47,146.42,6.82943672]
[1750183684828,11.73260413,146.46,146.42,11.73260413]
[1750183685329,26.0,146.46,146.43,11.73260413]
[1750183685528,11.8747657,146.47,146.43,11.73260413]
[1750183686206,11.8747657,146.47,146.41,6.83013455]
[1750183686520,0.14216157,146.47,146.42,18.56184554]
[1750183686691,12.15908884,146.47,146.42,6.82924141]
[1750183686887,12.15908884,146.47,146.43,11.73260413]
[1750183688411,12.15908884,146.47,146.43,18.56156487]
[1750183688900,11.73260413,146.46,146.43,6.82896074]
[1750183689100,11.73260413,146.45,146.41,18.56273868]
[1750183689329,11.73260413,146.46,146.41,18.56273868]
[1750183689835,11.73260413,146.46,146.38,6.83153436]
[1750183689836,11.73260413,146.43,146.38,6.83153436]
[1750183689993,11.73260413,146.43,146.38,18.56413849]
[1750183690200,11.73260413,146.43,146.37,6.83187584]
[1750183690201,11.73260413,146.41,146.37,6.83187584]
[1750183691128,11.73260413,146.41,146.37,18.56447997]
[1750183691330,11.73260413,146.41,146.37,6.83187584]
[1750183691497,6.97166985,146.43,146.37,6.83187584]
[1750183691704,11.73260413,146.41,146.37,6.83187584]
[1750183692637,11.73260413,146.41,146.36,6.83246788]
[1750183692798,11.73260413,146.4,146.36,18.56507201]
[1750183693121,11.73260413,146.41,146.36,18.56507201]
[1750183694203,11.73260413,146.41,146.36,6.83246788]
[1750183694410,0.14216157,146.44,146.4,11.73260413]
[1750183694610,1.5794,146.48,146.36,23.91363759]
[1750183694611,11.73260413,146.45,146.41,11.73260413]
[1750183694932,11.73260413,146.47,146.42,11.73260413]
[1750183695102,38.15908884,146.46,146.42,11.73260413]
[1750183695303,37.73260413,146.46,146.42,11.73260413]
[1750183695504,1.5794,146.48,146.45,11.73260413]
[1750183695915,11.73260413,146.49,146.45,11.73260413]
[1750183696119,26.0,146.49,146.46,11.73260413]
[1750183696334,37.73260413,146.49,146.45,11.73260413]
[1750183696626,37.73260413,146.49,146.45,18.5607954]
[1750183697016,11.73260413,146.48,146.44,11.73260413]
[1750183697439,26.14216157,146.49,146.45,11.73260413]
[1750183697648,26.0,146.49,146.46,11.73260413]
[1750183697831,26.0,146.49,146.45,11.73260413]
[1750183698138,26.0,146.49,146.46,11.73260413]
[1750183699007,37.73260413,146.49,146.45,18.56041521]
[1750183699704,37.73260413,146.49,146.44,11.73260413]
[1750183699705,12.15908884,146.48,146.44,11.73260413]
[1750183700104,0.42648471,146.48,146.44,11.73260413]
[1750183700528,0.42648471,146.48,146.44,18.56112859]
[1750183701708,12.15908884,146.48,146.44,18.56112859]
[1750183702442,0.42648471,146.48,146.44,18.56112859]
[1750183702816,26.0,146.49,146.45,11.73260413]
[1750183703025,37.73260413,146.49,146.45,11.73260413]
[1750183703733,44.5591095,146.49,146.44,6.82852446]
[1750183704032,0.42648471,146.48,146.44,18.56112859]
[1750183704208,0.42648471,146.48,146.41,35.72498118]
[1750183704209,11.73260413,146.47,146.43,18.56168056]
[1750183705220,18.98600931,146.48,146.43,18.56168056]
[1750183705940,26.0,146.49,146.47,11.73260413]
[1750183706233,18.55694947,146.54,146.48,11.73260413]
[1750183706440,11.73260413,146.53,146.48,11.73260413]
[1750183706814,32.82434534,146.54,146.49,11.73260413]
[1750183707017,11.73260413,146.55,146.51,11.73260413]
[1750183707235,0.42648471,146.54,146.5,11.73260413]
[1750183707418,44.55633117,146.55,146.5,11.73260413]
[1750183707638,11.73260413,146.54,146.49,11.73260413]
[1750183707819,11.73260413,146.53,146.48,18.55947469]
[1750183708135,12.15908884,146.54,146.5,11.73260413]
[1750183708329,0.42648471,146.54,146.51,11.73260413]
[1750183708637,0.14216157,146.54,146.51,11.73260413]
[1750183708832,0.42648471,146.54,146.51,11.73260413]
[1750183709036,0.42648471,146.54,146.48,6.82687056]
[1750183709238,11.73260413,146.52,146.48,18.55947469]
[1750183709406,7.25080517,146.54,146.48,18.55947469]
[1750183709612,11.73260413,146.53,146.49,11.73260413]
[1750183709918,12.15908884,146.54,146.5,11.73260413]
[1750183710432,0.42648471,146.54,146.5,11.73260413]
[1750183710616,12.15908884,146.54,146.5,11.73260413]
[1750183711216,12.15908884,146.54,146.5,18.55818872]
[1750183713033,0.14216157,146.54,146.51,11.73260413]
[1750183713244,26.0,146.53,146.51,18.55794485]
[1750183713554,8.61333301,146.56,146.52,11.73260413]
[1750183713555,26.0,146.56,146.52,11.73260413]
[1750183713754,26.0,146.56,146.53,11.73260413]
[1750183714464,26.0,146.56,146.53,18.55687658]
[1750183714769,26.0,146.56,146.52,11.73260413]
[1750183715063,11.73260413,146.53,146.49,18.55900866]
[1750183715233,26.0,146.56,146.52,11.73260413]
[1750183715542,13.31910413,146.6,146.55,11.73260413]
[1750183715760,5.03223481,146.6,146.56,11.73260413]
[1750183715922,5.03223481,146.6,146.57,11.73260413]
[1750183716122,12.15908884,146.6,146.53,18.64964886]
[1750183716332,12.15908884,146.6,146.56,11.73260413]
[1750183716540,11.73260413,146.6,146.54,6.82407533]
[1750183716855,11.73260413,146.58,146.54,11.73260413]
[1750183718057,18.55493197,146.58,146.54,11.73260413]
[1750183719060,11.73260413,146.57,146.53,11.73260413]
[1750183719228,11.73260413,146.57,146.52,6.82471171]
[1750183719431,11.73260413,146.57,146.53,11.73260413]
[1750183720531,11.73260413,146.55,146.51,18.55796352]
[1750183720832,11.73260413,146.53,146.47,18.64964886]
[1750183721036,26.0,146.54,146.49,11.73260413]
[1750183721242,37.73260413,146.54,146.49,11.73260413]
[1750183721848,37.73260413,146.54,146.49,18.55871739]
[1750183723247,11.73260413,146.55,146.5,11.73260413]
[1750183723559,26.0,146.55,146.46,32.66432314]
[1750183723954,37.73260413,146.55,146.51,11.73260413]
[1750183724351,26.0,146.55,146.51,11.73260413]
[1750183724666,37.73260413,146.55,146.51,11.73260413]
[1750183725672,11.73260413,146.53,146.49,11.73260413]
[1750183725863,12.15908884,146.54,146.5,18.55854269]
[1750183726255,18.98317597,146.54,146.5,18.55854269]
[1750183726777,11.73260413,146.52,146.47,6.82733665]
[1750183726942,11.73260413,146.51,146.47,18.55994078]
[1750183727871,6.82512073,146.52,146.47,18.55994078]
[1750183728056,11.73260413,146.51,146.47,18.55994078]
[1750183728254,11.73260413,146.5,146.46,18.56021185]
[1750183729876,11.73260413,146.49,146.45,18.56067627]
[1750183730074,11.73260413,146.49,146.42,18.729615]
[1750183730075,11.73260413,146.48,146.44,18.5611413]
[1750183730241,6.82611234,146.5,146.41,12.5702]
[1750183730242,11.73260413,146.47,146.43,18.56162595]
[1750183730443,11.73260413,146.47,146.42,11.73260413]
[1750183730646,11.73260413,146.47,146.43,11.73260413]
[1750183731875,11.73260413,146.47,146.43,18.56150959]
[1750183732681,12.15908884,146.48,146.44,11.73260413]
[1750183732869,12.15908884,146.48,146.44,18.56087534]
[1750183734164,12.15908884,146.48,146.44,6.82827121]
[1750183734474,11.73260413,146.47,146.44,6.82827121]
[1750183735281,0.42648471,146.48,146.44,6.82827121]
[1750183735580,11.73260413,146.47,146.44,6.82827121]
[1750183735994,12.15908884,146.48,146.44,11.73260413]
[1750183736984,11.73260413,146.47,146.43,11.73260413]
[1750183737561,11.73260413,146.47,146.44,6.82873531]
[1750183738075,12.15908884,146.48,146.44,18.56133944]
[1750183738964,7.28465584,146.48,146.44,6.85817113]
[1750183739161,6.85817113,146.47,146.43,6.85817113]
[1750183739840,6.85817113,146.45,146.42,6.82966807]
[1750183740286,6.85817113,146.44,146.4,13.68877222]
[1750183740494,6.85817113,146.44,146.4,6.83060109]
[1750183740660,0.42648471,146.43,146.38,23.91037026]
[1750183740859,0.42648471,146.43,146.4,6.83060109]
[1750183741103,56.1842,146.46,146.4,6.83060109]
[1750183741387,1.6633,146.5,146.45,6.85817113]
[1750183741558,1.6633,146.5,146.47,6.85817113]
[1750183741984,1.6633,146.5,146.44,6.85817113]
[1750183741985,27.6633,146.5,146.41,7.979]
[1750183742285,27.6633,146.5,146.46,6.85817113]
[1750183742789,1.6633,146.5,146.46,6.85817113]
[1750183742992,27.6633,146.5,146.47,13.68550778]
[1750183743865,26.0,146.49,146.47,13.68550778]
[1750183744066,26.0,146.49,146.48,6.85817113]
[1750183744274,26.0,146.49,146.44,23.92991565]
[1750183744275,26.0,146.49,146.44,17.07174452]
[1750183744606,26.0,146.49,146.45,6.85817113]
[1750183745087,26.0,146.49,146.45,11.75425264]
[1750183745269,26.0,146.49,146.45,18.58234432]
[1750183745978,26.0,146.49,146.47,11.75425264]
[1750183746884,26.0,146.49,146.45,6.82809168]
[1750183747061,26.0,146.49,146.47,11.75425264]
[1750183748190,26.0,146.49,146.47,18.5815547]
[1750183749385,26.0,146.49,146.47,6.82730206]
[1750183750191,26.0,146.49,146.47,11.75425264]
[1750183750981,26.0,146.49,146.46,11.75425264]
[1750183751593,12.18073735,146.48,146.42,6.82966807]
[1750183751796,11.75425264,146.46,146.42,6.82966807]
[1750183752384,11.75425264,146.46,146.42,18.58392071]